[Event "Early-Titled-Tuesday-Blitz-September-05-2023"]
[Site "Chess.com"]
[Date "2023.09.05"]
[Round "1"]
[White "DenLaz"]
[Black "joksijoksi"]
[Result "1-0"]
[WhiteElo "3068"]
[BlackElo "2541"]
[TimeControl "180+1"]
[EndTime "8:07:33 PDT"]
[Termination "DenLaz won by resignation"]

1. d4 {[%clk 0:03:00.9]} 1... d5 {[%clk 0:02:59.7]} 2. c4 {[%clk 0:03:01.6]}
2... c6 {[%clk 0:02:59.8]} 3. Nf3 {[%clk 0:03:02.2]} 3... Nf6 {[%clk 0:02:59.7]}
4. Qc2 {[%clk 0:03:02.8]} 4... dxc4 {[%clk 0:02:59.1]} 5. Qxc4 {[%clk
0:03:02.5]} 5... Bf5 {[%clk 0:02:58.9]} 6. g3 {[%clk 0:03:02.5]} 6... e6 {[%clk
0:02:59]} 7. Bg2 {[%clk 0:03:03]} 7... Be7 {[%clk 0:02:58]} 8. O-O {[%clk
0:03:03.1]} 8... O-O {[%clk 0:02:58.1]} 9. Qb3 {[%clk 0:03:02.7]} 9... Qb6
{[%clk 0:02:57.2]} 10. Nbd2 {[%clk 0:03:03.3]} 10... Ne4 {[%clk 0:02:50.6]} 11.
Nc4 {[%clk 0:03:00]} 11... Qa6 {[%clk 0:02:38.4]} 12. Nh4 {[%clk 0:02:51]} 12...
Bxh4 {[%clk 0:02:31.9]} 13. gxh4 {[%clk 0:02:51.9]} 13... Rd8 {[%clk 0:02:29.8]}
14. f3 {[%clk 0:02:42.6]} 14... Nf6 {[%clk 0:02:25.8]} 15. e4 {[%clk 0:02:40]}
15... Bg6 {[%clk 0:02:25.9]} 16. Be3 {[%clk 0:02:18.5]} 16... Nbd7 {[%clk
0:02:23.7]} 17. Rac1 {[%clk 0:02:18.2]} 17... Rac8 {[%clk 0:02:21.6]} 18. Rfd1
{[%clk 0:02:11.4]} 18... h6 {[%clk 0:02:09.6]} 19. Bf1 {[%clk 0:02:04.8]} 19...
b5 {[%clk 0:01:58.4]} 20. Nd6 {[%clk 0:02:04.2]} 20... Rb8 {[%clk 0:01:47.4]}
21. Qc3 {[%clk 0:01:43]} 21... Nb6 {[%clk 0:01:37.7]} 22. Qxc6 {[%clk
0:01:41.2]} 22... Qxa2 {[%clk 0:01:37.3]} 23. Nxb5 {[%clk 0:00:55.2]} 23... Qb3
{[%clk 0:01:24.6]} 24. Qc3 {[%clk 0:00:51]} 24... Qxc3 {[%clk 0:01:19.4]} 25.
bxc3 {[%clk 0:00:51]} 25... Bh5 {[%clk 0:01:16.4]} 26. Kf2 {[%clk 0:00:46.6]}
26... a6 {[%clk 0:01:14.1]} 27. Na3 {[%clk 0:00:45.9]} 27... a5 {[%clk
0:01:14.3]} 28. Be2 {[%clk 0:00:41.2]} 28... Rdc8 {[%clk 0:01:08.8]} 29. c4
{[%clk 0:00:38.6]} 29... Na4 {[%clk 0:01:08.4]} 30. Nb5 {[%clk 0:00:35.6]} 30...
Nb6 {[%clk 0:01:03.4]} 31. c5 {[%clk 0:00:33]} 31... Nbd7 {[%clk 0:01:00.2]} 32.
Nd6 {[%clk 0:00:33]} 32... Rc7 {[%clk 0:00:59]} 33. Rb1 {[%clk 0:00:33.6]} 33...
Ra8 {[%clk 0:00:57.4]} 34. Ra1 {[%clk 0:00:28.6]} 34... e5 {[%clk 0:00:57.3]}
35. Nb5 {[%clk 0:00:27.9]} 35... Rcc8 {[%clk 0:00:52.5]} 36. Rdc1 {[%clk
0:00:27.5]} 36... exd4 {[%clk 0:00:48.7]} 37. Bxd4 {[%clk 0:00:28.4]} 37... a4
{[%clk 0:00:42.8]} 38. c6 {[%clk 0:00:27.9]} 38... Nf8 {[%clk 0:00:40.3]} 39.
Nd6 {[%clk 0:00:16.6]} 39... Rd8 {[%clk 0:00:37.8]} 40. Nf5 {[%clk 0:00:13.4]}
40... Ng6 {[%clk 0:00:24.3]} 41. c7 {[%clk 0:00:09.9]} 41... Rdc8 {[%clk
0:00:18.5]} 42. Bxf6 {[%clk 0:00:10.1]} 42... gxf6 {[%clk 0:00:17]} 43. Nd6
{[%clk 0:00:10.8]} 43... Nf4 {[%clk 0:00:17]} 44. Nxc8 {[%clk 0:00:10.7]} 44...
Rxc8 {[%clk 0:00:17.9]} 45. Rxa4 {[%clk 0:00:11.1]} 45... Kf8 {[%clk 0:00:15.4]}
46. Ba6 {[%clk 0:00:10.5]} 1-0

[Event "Early-Titled-Tuesday-Blitz-September-05-2023"]
[Site "Chess.com"]
[Date "2023.09.05"]
[Round "1"]
[White "WhiteKnight2612"]
[Black "topin8"]
[Result "1-0"]
[WhiteElo "2854"]
[BlackElo "2471"]
[TimeControl "180+1"]
[EndTime "8:07:33 PDT"]
[Termination "WhiteKnight2612 won on time"]

1. Nf3 {[%clk 0:02:51.3]} 1... c5 {[%clk 0:02:59]} 2. g3 {[%clk 0:02:51.4]} 2...
Nc6 {[%clk 0:02:59]} 3. Bg2 {[%clk 0:02:51.9]} 3... g6 {[%clk 0:02:59.2]} 4. O-O
{[%clk 0:02:52.6]} 4... Bg7 {[%clk 0:02:59.2]} 5. c4 {[%clk 0:02:53.3]} 5... e5
{[%clk 0:02:58.6]} 6. Nc3 {[%clk 0:02:53.6]} 6... Nge7 {[%clk 0:02:57.8]} 7. d3
{[%clk 0:02:53.9]} 7... O-O {[%clk 0:02:57.4]} 8. Re1 {[%clk 0:02:54.5]} 8... d6
{[%clk 0:02:57]} 9. Nd2 {[%clk 0:02:54.9]} 9... Be6 {[%clk 0:02:53.7]} 10. Nf1
{[%clk 0:02:55.3]} 10... d5 {[%clk 0:02:51.5]} 11. cxd5 {[%clk 0:02:55]} 11...
Nxd5 {[%clk 0:02:52.4]} 12. Bd2 {[%clk 0:02:54.2]} 12... Rc8 {[%clk 0:02:46]}
13. Rb1 {[%clk 0:02:52]} 13... Nxc3 {[%clk 0:02:20.9]} 14. bxc3 {[%clk
0:02:48.5]} 14... b6 {[%clk 0:02:18.9]} 15. c4 {[%clk 0:02:48.3]} 15... f5
{[%clk 0:02:09.7]} 16. Ne3 {[%clk 0:02:42.6]} 16... Ne7 {[%clk 0:02:03.9]} 17.
a4 {[%clk 0:02:39.9]} 17... Rb8 {[%clk 0:01:59.3]} 18. a5 {[%clk 0:02:39.1]}
18... Qd7 {[%clk 0:01:46.8]} 19. Bc3 {[%clk 0:02:29.8]} 19... b5 {[%clk
0:01:34.8]} 20. cxb5 {[%clk 0:02:26.6]} 20... Rxb5 {[%clk 0:01:35.7]} 21. Rxb5
{[%clk 0:02:24.8]} 21... Qxb5 {[%clk 0:01:36.6]} 22. Qa1 {[%clk 0:02:25]} 22...
Rb8 {[%clk 0:01:35.5]} 23. Bxe5 {[%clk 0:02:23.1]} 23... Bxe5 {[%clk 0:01:30.5]}
24. Qxe5 {[%clk 0:02:24]} 24... Kf7 {[%clk 0:01:31.3]} 25. Nd5 {[%clk
0:02:11.2]} 25... Nxd5 {[%clk 0:00:34.9]} 26. Bxd5 {[%clk 0:02:12.1]} 26... Re8
{[%clk 0:00:22.6]} 27. Qc7+ {[%clk 0:01:49.1]} 27... Re7 {[%clk 0:00:22.4]} 28.
Bxe6+ {[%clk 0:01:49.3]} 28... Kxe6 {[%clk 0:00:23.3]} 29. Qc8+ {[%clk 0:01:49]}
29... Kf7 {[%clk 0:00:20]} 30. Qh8 {[%clk 0:01:34]} 30... Qxa5 {[%clk
0:00:18.7]} 31. Qxh7+ {[%clk 0:01:31.1]} 31... Kf6 {[%clk 0:00:14.5]} 32. Qh4+
{[%clk 0:01:29.3]} 32... Kf7 {[%clk 0:00:12.4]} 33. Qc4+ {[%clk 0:01:24.4]}
33... Kg7 {[%clk 0:00:08.6]} 34. Rb1 {[%clk 0:01:24.4]} 34... Qc7 {[%clk
0:00:03.2]} 35. e3 {[%clk 0:01:16.6]} 35... Rd7 {[%clk 0:00:01.8]} 36. Rb5
{[%clk 0:01:15.5]} 36... Qd6 {[%clk 0:00:01.1]} 37. Qc3+ {[%clk 0:01:11.1]}
37... Kf7 {[%clk 0:00:01.1]} 38. Rb3 {[%clk 0:01:09.9]} 38... Qd5 {[%clk
0:00:01.2]} 39. h4 {[%clk 0:01:04.1]} 39... Qf3 {[%clk 0:00:01.1]} 40. Rb1
{[%clk 0:00:58.9]} 40... Qd5 {[%clk 0:00:01.1]} 41. Rb8 {[%clk 0:00:46.3]} 41...
Qf3 {[%clk 0:00:01]} 42. Qh8 {[%clk 0:00:36.2]} 42... Rxd3 {[%clk 0:00:01.1]}
43. Qg8+ {[%clk 0:00:21.6]} 1-0

[Event "Early-Titled-Tuesday-Blitz-September-05-2023"]
[Site "Chess.com"]
[Date "2023.09.05"]
[Round "1"]
[White "Athanasios2"]
[Black "MarijaKuznecova"]
[Result "1-0"]
[WhiteElo "2675"]
[BlackElo "2379"]
[TimeControl "180+1"]
[EndTime "8:07:33 PDT"]
[Termination "Athanasios2 won by checkmate"]

1. e4 {[%clk 0:02:59.4]} 1... c5 {[%clk 0:02:59.5]} 2. Nf3 {[%clk 0:02:52.6]}
2... d6 {[%clk 0:02:59.2]} 3. d4 {[%clk 0:02:53]} 3... cxd4 {[%clk 0:02:59.8]}
4. Nxd4 {[%clk 0:02:53.2]} 4... Nf6 {[%clk 0:03:00.5]} 5. Nc3 {[%clk 0:02:53.4]}
5... a6 {[%clk 0:03:01]} 6. Bg5 {[%clk 0:02:50.8]} 6... e6 {[%clk 0:02:58.1]} 7.
Qd2 {[%clk 0:02:50.3]} 7... Nbd7 {[%clk 0:02:40.4]} 8. O-O-O {[%clk 0:02:48.4]}
8... b5 {[%clk 0:02:32.6]} 9. f3 {[%clk 0:02:43.1]} 9... Qc7 {[%clk 0:02:29.4]}
10. Kb1 {[%clk 0:02:35.8]} 10... Be7 {[%clk 0:02:21.7]} 11. h4 {[%clk
0:02:34.3]} 11... Nb6 {[%clk 0:02:05.3]} 12. Ndxb5 {[%clk 0:01:57.4]} 12... axb5
{[%clk 0:01:53]} 13. Nxb5 {[%clk 0:01:58.3]} 13... Qb8 {[%clk 0:01:46.7]} 14.
Nxd6+ {[%clk 0:01:38.6]} 14... Bxd6 {[%clk 0:01:46.3]} 15. Qxd6 {[%clk
0:01:39.5]} 15... Bd7 {[%clk 0:01:27]} 16. Qxb8+ {[%clk 0:01:27.6]} 16... Rxb8
{[%clk 0:01:26.6]} 17. Bf4 {[%clk 0:01:28.3]} 17... Rb7 {[%clk 0:01:11.1]} 18.
Ba6 {[%clk 0:01:27.6]} 18... Ra7 {[%clk 0:01:09.7]} 19. Be2 {[%clk 0:01:24.8]}
19... O-O {[%clk 0:00:59.8]} 20. Be3 {[%clk 0:01:12.6]} 20... Rb8 {[%clk
0:00:58.4]} 21. Rd6 {[%clk 0:01:09.1]} 21... Rab7 {[%clk 0:00:47.5]} 22. Ba6
{[%clk 0:01:07.3]} 22... Ra7 {[%clk 0:00:45.2]} 23. Rxb6 {[%clk 0:00:58.8]}
23... Rxb6 {[%clk 0:00:44.7]} 24. Bxb6 {[%clk 0:00:59.7]} 24... Rxa6 {[%clk
0:00:45.3]} 25. Bd4 {[%clk 0:01:00.4]} 25... Kf8 {[%clk 0:00:26]} 26. Rd1 {[%clk
0:00:55.7]} 26... Bc6 {[%clk 0:00:21.2]} 27. g4 {[%clk 0:00:47.7]} 27... Nd7
{[%clk 0:00:20.2]} 28. b3 {[%clk 0:00:42.2]} 28... f6 {[%clk 0:00:20.1]} 29. c4
{[%clk 0:00:37.5]} 29... Ra8 {[%clk 0:00:18.4]} 30. Bc3 {[%clk 0:00:32.5]} 30...
Rb8 {[%clk 0:00:14.7]} 31. Rd6 {[%clk 0:00:31.4]} 31... Rb6 {[%clk 0:00:06.2]}
32. Kb2 {[%clk 0:00:16.9]} 32... Ke7 {[%clk 0:00:06.5]} 33. Rd2 {[%clk
0:00:17.4]} 33... Nc5 {[%clk 0:00:04]} 34. Bd4 {[%clk 0:00:17.3]} 34... Na4+
{[%clk 0:00:02.3]} 35. Kc2 {[%clk 0:00:17.6]} 35... Ra6 {[%clk 0:00:01.9]} 36.
bxa4 {[%clk 0:00:14.4]} 36... Rxa4 {[%clk 0:00:02.8]} 37. Kb3 {[%clk 0:00:14]}
37... e5 {[%clk 0:00:03.4]} 38. Bc5+ {[%clk 0:00:14.1]} 38... Kf7 {[%clk
0:00:04]} 39. Rd6 {[%clk 0:00:14]} 39... Be8 {[%clk 0:00:04.1]} 40. Rd8 {[%clk
0:00:13]} 40... Ra6 {[%clk 0:00:03.1]} 41. Rb8 {[%clk 0:00:12.6]} 41... Rc6
{[%clk 0:00:03.1]} 42. Rb7+ {[%clk 0:00:12.7]} 42... Ke6 {[%clk 0:00:02.4]} 43.
Re7# {[%clk 0:00:11.9]} 1-0

[Event "Early-Titled-Tuesday-Blitz-September-05-2023"]
[Site "Chess.com"]
[Date "2023.09.05"]
[Round "1"]
[White "AradNazari"]
[Black "NovikovaGalina"]
[Result "1-0"]
[WhiteElo "2708"]
[BlackElo "2405"]
[TimeControl "180+1"]
[EndTime "8:07:34 PDT"]
[Termination "AradNazari won on time"]

1. e4 {[%clk 0:03:00.9]} 1... e6 {[%clk 0:02:58.4]} 2. d4 {[%clk 0:03:00.6]}
2... d5 {[%clk 0:02:59.1]} 3. e5 {[%clk 0:03:01.3]} 3... c5 {[%clk 0:02:58.5]}
4. c3 {[%clk 0:03:01.8]} 4... Nc6 {[%clk 0:02:59.4]} 5. Nf3 {[%clk 0:03:01.6]}
5... Bd7 {[%clk 0:03:00.3]} 6. Be2 {[%clk 0:03:01.2]} 6... Qc7 {[%clk
0:02:57.7]} 7. O-O {[%clk 0:02:58.1]} 7... f6 {[%clk 0:02:57.8]} 8. Bf4 {[%clk
0:02:50.5]} 8... O-O-O {[%clk 0:02:56.3]} 9. Bg3 {[%clk 0:02:47.2]} 9... f5
{[%clk 0:02:55.9]} 10. dxc5 {[%clk 0:02:45.8]} 10... h6 {[%clk 0:02:46.2]} 11.
b4 {[%clk 0:02:35.4]} 11... g5 {[%clk 0:02:46.2]} 12. h4 {[%clk 0:02:27.3]}
12... f4 {[%clk 0:02:28.1]} 13. Bh2 {[%clk 0:02:26.9]} 13... Nxe5 {[%clk
0:02:25.7]} 14. Nxe5 {[%clk 0:02:14.8]} 14... Qxe5 {[%clk 0:02:25.2]} 15. Re1
{[%clk 0:02:12.8]} 15... Qg7 {[%clk 0:02:15.9]} 16. Bg4 {[%clk 0:01:40.8]} 16...
e5 {[%clk 0:01:58]} 17. Bxd7+ {[%clk 0:01:36.8]} 17... Rxd7 {[%clk 0:01:58.9]}
18. Qa4 {[%clk 0:01:26.7]} 18... Kb8 {[%clk 0:01:53.8]} 19. c6 {[%clk
0:01:19.4]} 19... bxc6 {[%clk 0:01:11.5]} 20. Qxc6 {[%clk 0:01:20.3]} 20... e4
{[%clk 0:00:34.3]} 21. Qb5+ {[%clk 0:00:50.4]} 21... Ka8 {[%clk 0:00:31.7]} 22.
Nd2 {[%clk 0:00:51]} 22... Nf6 {[%clk 0:00:30.1]} 23. Qc6+ {[%clk 0:00:43.3]}
23... Kb8 {[%clk 0:00:26.2]} 24. Nb3 {[%clk 0:00:39.8]} 24... Rc7 {[%clk
0:00:22.5]} 25. Qb5+ {[%clk 0:00:34.2]} 25... Rb7 {[%clk 0:00:23.1]} 26. Qa4
{[%clk 0:00:23.2]} 26... Bd6 {[%clk 0:00:21.6]} 27. Na5 {[%clk 0:00:22.3]} 27...
Qd7 {[%clk 0:00:15.3]} 28. Nc6+ {[%clk 0:00:18.7]} 28... Ka8 {[%clk 0:00:16]}
29. b5 {[%clk 0:00:18.9]} 29... Ng4 {[%clk 0:00:12.3]} 30. Rad1 {[%clk
0:00:18.3]} 30... Nxh2 {[%clk 0:00:12.5]} 31. Kxh2 {[%clk 0:00:18.3]} 31... f3+
{[%clk 0:00:12.7]} 32. g3 {[%clk 0:00:18.3]} 32... gxh4 {[%clk 0:00:13.3]} 33.
Rxd5 {[%clk 0:00:12.7]} 33... hxg3+ {[%clk 0:00:14.1]} 34. Kg1 {[%clk
0:00:13.2]} 34... gxf2+ {[%clk 0:00:13.3]} 35. Kxf2 {[%clk 0:00:13.5]} 35... Rg8
{[%clk 0:00:06.4]} 36. Qxe4 {[%clk 0:00:11.5]} 36... Bg3+ {[%clk 0:00:04.6]} 37.
Ke3 {[%clk 0:00:08.6]} 37... Bxe1 {[%clk 0:00:05.1]} 38. Rxd7 {[%clk 0:00:08.6]}
38... f2 {[%clk 0:00:03.1]} 39. Nd8 {[%clk 0:00:08.2]} 1-0

[Event "Early-Titled-Tuesday-Blitz-September-05-2023"]
[Site "Chess.com"]
[Date "2023.09.05"]
[Round "1"]
[White "C_K_G"]
[Black "NovozhilovSemen"]
[Result "0-1"]
[WhiteElo "2066"]
[BlackElo "2564"]
[TimeControl "180+1"]
[EndTime "8:07:38 PDT"]
[Termination "NovozhilovSemen won by resignation"]

1. e4 {[%clk 0:03:00.5]} 1... e6 {[%clk 0:02:59.8]} 2. Nf3 {[%clk 0:03:00.6]}
2... d5 {[%clk 0:02:59.9]} 3. Nc3 {[%clk 0:03:01]} 3... Nf6 {[%clk 0:02:59.6]}
4. e5 {[%clk 0:03:01.2]} 4... Nfd7 {[%clk 0:02:59.7]} 5. d4 {[%clk 0:03:01.3]}
5... c5 {[%clk 0:02:59.8]} 6. Bg5 {[%clk 0:03:01.4]} 6... Qb6 {[%clk 0:02:57.6]}
7. dxc5 {[%clk 0:03:01.6]} 7... Bxc5 {[%clk 0:02:29.1]} 8. Qd2 {[%clk
0:02:55.2]} 8... h6 {[%clk 0:02:03]} 9. Bh4 {[%clk 0:02:45.7]} 9... g5 {[%clk
0:01:59]} 10. Bg3 {[%clk 0:02:33.9]} 10... Be7 {[%clk 0:01:58]} 11. Bb5 {[%clk
0:02:27.2]} 11... Nc6 {[%clk 0:01:56.7]} 12. O-O {[%clk 0:02:22.7]} 12... O-O
{[%clk 0:01:43]} 13. h4 {[%clk 0:01:58.2]} 13... d4 {[%clk 0:01:42.9]} 14. Bd3
{[%clk 0:01:40.3]} 14... dxc3 {[%clk 0:01:40.8]} 15. bxc3 {[%clk 0:01:40.8]}
15... Qd8 {[%clk 0:01:35.5]} 16. hxg5 {[%clk 0:01:37.3]} 16... hxg5 {[%clk
0:01:34.5]} 17. Qe2 {[%clk 0:01:36.4]} 17... Nc5 {[%clk 0:01:18.2]} 18. Rad1
{[%clk 0:01:21]} 18... Bd7 {[%clk 0:00:53.1]} 19. Nh2 {[%clk 0:01:08.4]} 19...
Kg7 {[%clk 0:00:50.5]} 20. Ng4 {[%clk 0:00:59.4]} 20... Rc8 {[%clk 0:00:40]} 21.
Be4 {[%clk 0:00:51.5]} 21... Qa5 {[%clk 0:00:26.4]} 22. Nf6 {[%clk 0:00:39.2]}
22... Bxf6 {[%clk 0:00:17.4]} 23. exf6+ {[%clk 0:00:40.1]} 23... Kxf6 {[%clk
0:00:18.3]} 24. Bxc6 {[%clk 0:00:20.3]} 24... Bxc6 {[%clk 0:00:19.2]} 25. Be5+
{[%clk 0:00:20.6]} 25... Kg6 {[%clk 0:00:19]} 26. f4 {[%clk 0:00:13.9]} 26...
Ne4 {[%clk 0:00:18]} 27. fxg5 {[%clk 0:00:09.7]} 27... Qxe5 {[%clk 0:00:17]} 28.
Rf3 {[%clk 0:00:08.6]} 28... Qc5+ {[%clk 0:00:16.3]} 29. Re3 {[%clk 0:00:07.7]}
29... Rcd8 {[%clk 0:00:14.8]} 30. Rd4 {[%clk 0:00:08.1]} 30... Rxd4 {[%clk
0:00:14.6]} 31. cxd4 {[%clk 0:00:09]} 31... Qxd4 {[%clk 0:00:15.5]} 32. c3
{[%clk 0:00:05.3]} 32... Qd5 {[%clk 0:00:12.3]} 33. Qf3 {[%clk 0:00:04.1]} 33...
Nxg5 {[%clk 0:00:10.8]} 34. Qg3 {[%clk 0:00:04.2]} 34... Rd8 {[%clk 0:00:09.7]}
35. Re5 {[%clk 0:00:03.2]} 35... Qxg2+ {[%clk 0:00:08.8]} 36. Qxg2 {[%clk
0:00:04.1]} 36... Bxg2 {[%clk 0:00:09.3]} 37. Kxg2 {[%clk 0:00:05]} 37... Rd2+
{[%clk 0:00:09.9]} 38. Kg3 {[%clk 0:00:05.1]} 38... Rxa2 {[%clk 0:00:10.8]} 39.
Rb5 {[%clk 0:00:05.3]} 39... b6 {[%clk 0:00:11.5]} 40. c4 {[%clk 0:00:05.1]}
40... Ne4+ {[%clk 0:00:11.8]} 41. Kf4 {[%clk 0:00:05.2]} 41... Nc5 {[%clk
0:00:12.7]} 42. Rb1 {[%clk 0:00:04.4]} 42... Kf6 {[%clk 0:00:13.1]} 0-1

[Event "Early-Titled-Tuesday-Blitz-September-05-2023"]
[Site "Chess.com"]
[Date "2023.09.05"]
[Round "1"]
[White "Gameking51"]
[Black "shimastream"]
[Result "0-1"]
[WhiteElo "2513"]
[BlackElo "2958"]
[TimeControl "180+1"]
[EndTime "8:07:39 PDT"]
[Termination "shimastream won on time"]

1. e4 {[%clk 0:03:00.9]} 1... d5 {[%clk 0:02:56.3]} 2. exd5 {[%clk 0:02:59.7]}
2... Qxd5 {[%clk 0:02:57.2]} 3. Nc3 {[%clk 0:02:51.8]} 3... Qe5+ {[%clk
0:02:57]} 4. Be2 {[%clk 0:02:35.7]} 4... Bg4 {[%clk 0:02:56.2]} 5. d4 {[%clk
0:02:32.9]} 5... Bxe2 {[%clk 0:02:55.2]} 6. Ngxe2 {[%clk 0:02:31.7]} 6... Qa5
{[%clk 0:02:55.2]} 7. O-O {[%clk 0:02:30.5]} 7... Nf6 {[%clk 0:02:53.9]} 8. Nf4
{[%clk 0:02:12.1]} 8... c6 {[%clk 0:02:49.1]} 9. Re1 {[%clk 0:02:02.2]} 9... e6
{[%clk 0:02:44.4]} 10. Qe2 {[%clk 0:02:00.7]} 10... Qf5 {[%clk 0:02:39.5]} 11.
d5 {[%clk 0:01:45.1]} 11... cxd5 {[%clk 0:02:22.8]} 12. Qb5+ {[%clk 0:01:40.7]}
12... Nbd7 {[%clk 0:02:20.8]} 13. Qxb7 {[%clk 0:01:40.8]} 13... Rb8 {[%clk
0:02:18.4]} 14. Qxa7 {[%clk 0:01:39.1]} 14... Bd6 {[%clk 0:02:09]} 15. Nd3
{[%clk 0:01:15.7]} 15... O-O {[%clk 0:01:58.9]} 16. h3 {[%clk 0:01:14.1]} 16...
Rfc8 {[%clk 0:01:50.7]} 17. Qe3 {[%clk 0:01:04.6]} 17... Nb6 {[%clk 0:01:45.9]}
18. Ne5 {[%clk 0:01:00.6]} 18... Qxc2 {[%clk 0:01:31.4]} 19. Nxf7 {[%clk
0:01:00.5]} 19... Bc5 {[%clk 0:01:26.5]} 20. Qxe6 {[%clk 0:00:55.6]} 20... Qxf2+
{[%clk 0:01:14.7]} 21. Kh1 {[%clk 0:00:51.9]} 21... Kf8 {[%clk 0:01:03.3]} 22.
Ng5 {[%clk 0:00:35.5]} 22... Rb7 {[%clk 0:01:01.2]} 23. Bf4 {[%clk 0:00:11.6]}
23... h6 {[%clk 0:00:21.8]} 24. Rf1 {[%clk 0:00:11.3]} 24... Re7 {[%clk
0:00:02.1]} 25. Rxf2 {[%clk 0:00:06.4]} 25... hxg5 {[%clk 0:00:02.8]} 26. Qxc8+
{[%clk 0:00:02]} 26... Nxc8 {[%clk 0:00:02.4]} 27. Rf3 {[%clk 0:00:02.6]} 27...
gxf4 {[%clk 0:00:02.2]} 28. Rxf4 {[%clk 0:00:03.5]} 28... Nb6 {[%clk 0:00:02.5]}
29. Rc1 {[%clk 0:00:03.3]} 29... Be3 {[%clk 0:00:02.7]} 30. Rcf1 {[%clk
0:00:03.1]} 30... Bxf4 {[%clk 0:00:03]} 31. Rxf4 {[%clk 0:00:04]} 31... Nc4
{[%clk 0:00:03]} 32. b3 {[%clk 0:00:03.7]} 32... Ne3 {[%clk 0:00:03.2]} 33. Kh2
{[%clk 0:00:03.6]} 33... Rd7 {[%clk 0:00:03.4]} 34. Rd4 {[%clk 0:00:03.8]} 34...
Kf7 {[%clk 0:00:03.4]} 35. a4 {[%clk 0:00:04.4]} 35... Ke6 {[%clk 0:00:03.4]}
36. a5 {[%clk 0:00:04.8]} 36... Ke5 {[%clk 0:00:03.9]} 37. Rd2 {[%clk
0:00:03.9]} 37... d4 {[%clk 0:00:04.3]} 38. Nb5 {[%clk 0:00:03.5]} 38... Ne4
{[%clk 0:00:04.4]} 39. Ra2 {[%clk 0:00:02.9]} 39... Nc3 {[%clk 0:00:03.6]} 40.
Nxc3 {[%clk 0:00:01.8]} 40... dxc3 {[%clk 0:00:04.5]} 41. a6 {[%clk 0:00:02.5]}
41... c2 {[%clk 0:00:04.9]} 42. Ra1 {[%clk 0:00:03]} 42... Rd1 {[%clk
0:00:03.9]} 0-1

[Event "Early-Titled-Tuesday-Blitz-September-05-2023"]
[Site "Chess.com"]
[Date "2023.09.05"]
[Round "1"]
[White "rasmussvane"]
[Black "only_strong_moves"]
[Result "1-0"]
[WhiteElo "2963"]
[BlackElo "2517"]
[TimeControl "180+1"]
[EndTime "8:07:40 PDT"]
[Termination "rasmussvane won on time"]

1. Nf3 {[%clk 0:02:50.5]} 1... Nf6 {[%clk 0:02:59.8]} 2. g3 {[%clk 0:02:49.9]}
2... d5 {[%clk 0:02:59.5]} 3. Bg2 {[%clk 0:02:49.4]} 3... Bg4 {[%clk 0:02:57.2]}
4. O-O {[%clk 0:02:49.5]} 4... e6 {[%clk 0:02:57.3]} 5. h3 {[%clk 0:02:49.7]}
5... Bh5 {[%clk 0:02:57.1]} 6. c4 {[%clk 0:02:45.3]} 6... c6 {[%clk 0:02:55.9]}
7. d4 {[%clk 0:02:45.6]} 7... Nbd7 {[%clk 0:02:52.4]} 8. cxd5 {[%clk 0:02:44.9]}
8... exd5 {[%clk 0:02:49.9]} 9. Ne5 {[%clk 0:02:45]} 9... Nxe5 {[%clk
0:02:45.5]} 10. dxe5 {[%clk 0:02:45.9]} 10... Nd7 {[%clk 0:02:46]} 11. Nc3
{[%clk 0:02:46.1]} 11... Bc5 {[%clk 0:02:41]} 12. Na4 {[%clk 0:02:45.1]} 12...
Be7 {[%clk 0:02:23.1]} 13. f4 {[%clk 0:02:44.9]} 13... f5 {[%clk 0:02:13.4]} 14.
Be3 {[%clk 0:02:43.7]} 14... O-O {[%clk 0:02:09.7]} 15. Qb3 {[%clk 0:02:39.5]}
15... b5 {[%clk 0:02:07.3]} 16. Nc3 {[%clk 0:02:39.3]} 16... Bf7 {[%clk
0:02:07.2]} 17. Qc2 {[%clk 0:02:36.4]} 17... Nb6 {[%clk 0:01:56.2]} 18. Bf2
{[%clk 0:02:15.7]} 18... Rc8 {[%clk 0:01:48.4]} 19. Rad1 {[%clk 0:02:09.8]}
19... Qe8 {[%clk 0:01:36.3]} 20. a3 {[%clk 0:01:48.5]} 20... Be6 {[%clk
0:01:31.2]} 21. b4 {[%clk 0:01:31.5]} 21... Nc4 {[%clk 0:01:29.2]} 22. Nb1
{[%clk 0:01:23.7]} 22... Qf7 {[%clk 0:01:22.2]} 23. Qc3 {[%clk 0:01:22.5]} 23...
Rfd8 {[%clk 0:01:14.2]} 24. Nd2 {[%clk 0:01:20.1]} 24... c5 {[%clk 0:00:32.9]}
25. bxc5 {[%clk 0:01:14.8]} 25... d4 {[%clk 0:00:29.1]} 26. Qa1 {[%clk
0:01:05.6]} 26... Bxc5 {[%clk 0:00:23.5]} 27. Nf3 {[%clk 0:01:01.1]} 27... Ne3
{[%clk 0:00:20.7]} 28. Bxe3 {[%clk 0:00:59.3]} 28... dxe3 {[%clk 0:00:21.6]} 29.
Ng5 {[%clk 0:00:59.9]} 29... Qe7 {[%clk 0:00:19.4]} 30. Nxe6 {[%clk 0:00:59.9]}
30... Qxe6 {[%clk 0:00:20.3]} 31. Rxd8+ {[%clk 0:00:57.4]} 31... Rxd8 {[%clk
0:00:21.2]} 32. Rc1 {[%clk 0:00:50.4]} 32... Bb6 {[%clk 0:00:16.4]} 33. Qb1
{[%clk 0:00:45.3]} 33... Rd2 {[%clk 0:00:07.7]} 34. Qxb5 {[%clk 0:00:43.1]}
34... h6 {[%clk 0:00:06.5]} 35. Rc6 {[%clk 0:00:20.9]} 35... Qa2 {[%clk
0:00:05.5]} 36. Rc8+ {[%clk 0:00:20.9]} 36... Kh7 {[%clk 0:00:05.6]} 37. Qe8
{[%clk 0:00:20.7]} 37... Rxe2 {[%clk 0:00:05.7]} 38. Qh8+ {[%clk 0:00:20.8]}
38... Kg6 {[%clk 0:00:06]} 39. Rc6+ {[%clk 0:00:14.6]} 39... Kf7 {[%clk
0:00:06.5]} 40. e6+ {[%clk 0:00:11.2]} 40... Kf6 {[%clk 0:00:02.2]} 41. Qf8+
{[%clk 0:00:06.9]} 41... Kg6 {[%clk 0:00:02.7]} 42. Qf7+ {[%clk 0:00:07.2]}
42... Kh7 {[%clk 0:00:03.1]} 43. Qxf5+ {[%clk 0:00:07.5]} 1-0